Cogmind - Beta 11 X8 @@@ ROGUE MODE // 2021.10.25 @ 03:58:47 Player: Runia Result: Self-destructed Performance ------------- Evolutions (4) 2000 Regions Visited (15) 3000 Robots Destroyed (169) 845 Value Destroyed (4773) 4773 Prototype IDs (29) 580 Alien Tech Used (0) 0 Bonus (429) 429 TOTAL SCORE: 11627 Bonus ------- High Alert Combat Kills 181 Met Data Miner 300 Friendly Fire -52 Cogmind --------- Core Integrity 661/850 Matter 0/300 Energy 83/100 System Corruption 31% Temperature Cool (0) Movement Core (50) Location -6/Factory Parts ------- > --- POWER (1) -------- (None) > --- PROPULSION (3) --- (None) > --- UTILITY (8) ------ (None) > --- WEAPON (3) ------- (None) > --- INVENTORY (5) ---- Advanced Energy Well (500) Improved Utility Shielding Hacking Suite Hacking Suite Neutron Cannon Peak State ------------ > --- POWER ------------ Micro Nuclear Core > --- PROPULSION ------- Armored Treads Armored Huge Wheel > --- UTILITY ---------- Improved Cooling System Huge Storage Unit Advanced Energy Well Improved Signal Interpreter Experimental Targeting Computer Layered Medium Armor Plating > --- WEAPON ----------- Precision Beam Rifle Improved Spread Laser 8R-AWN's Boregun > --- INVENTORY -------- Enhanced Flexi-carbon Leg Enhanced Flexi-carbon Leg Advanced Myomer Leg Advanced Myomer Leg Combat Antigrav System Experimental Heat Sink Advanced Energy Well Advanced Particle Charger Improved Utility Shielding Layered Medium Armor Plating Experimental Thermal Shield Hacking Suite Hacking Suite Advanced Component Analysis Suite AS-neutralizer No. 17b Advanced Beam Rifle Neutron Cannon Neutron Cannon Shock Bomb Launcher Rocket Launcher Missile Launcher Spear Dirty Bomb Trap [Rating: 73] Favorites ----------- Power Reinforced Fission Core Engine Light Ion Engine Power Core Reinforced Fission Core Propulsion Advanced Treads Treads Advanced Treads Leg Advanced Myomer Leg Wheel Armored Huge Wheel Hover Unit Combat Antigrav System Utility Large Storage Unit Device Experimental Heat Sink Storage Large Storage Unit Processor Improved Signal Interpreter Hackware Hacking Suite Protection Heavy Armor Plating Weapon Heavy Assault Rifle Energy Gun Precision Beam Rifle Energy Cannon Neutron Cannon Ballistic Gun Heavy Assault Rifle Launcher Grenade Launcher Special Weapon Plasma Cutter Slashing Weapon Mining Claw Piercing Weapon Spear Build | -11 -10 -10 -9 -9 -9 -8 -8 -7 -7 -7 -7 -6 -6 -6 -6 ------- Run | Scr Mat Min Mat Min Exi Min Mat Fac Low Low Dat Pro Fac Was Fac Slots Evolved 8 | . . . 2 . . . 2 2 . . . . 2 . . Power . | . . . . . . . . . . . . . . . . Propulsion 1 | . . . . . . . . 1 . . . . . . . Utility 6 | . . . 2 . . . 1 1 . . . . 2 . . Weapon 1 | . . . . . . . 1 . . . . . . . . Parts Attached 215 | . 15 9 26 4 25 5 53 33 8 5 19 5 3 5 . Power 10 | . 1 1 1 . 2 . 1 1 . 1 2 . . . . Engine 4 | . 1 1 . . . . 1 . . 1 . . . . . Core 6 | . . . 1 . 2 . . 1 . . 2 . . . . Reactor . | . . . . . . . . . . . . . . . . Propulsion 26 | . 3 1 3 . 2 2 7 4 . . 3 . . 1 . Treads 19 | . 3 1 3 . 2 . 6 3 . . 1 . . . . Leg 3 | . . . . . . 2 . . . . . . . 1 . Wheel 3 | . . . . . . . . 1 . . 2 . . . . Hover 1 | . . . . . . . 1 . . . . . . . . Flight . | . . . . . . . . . . . . . . . . Utility 72 | . 3 1 7 3 11 1 18 12 5 2 8 1 . . . Device 25 | . . . 1 1 6 1 3 7 2 2 1 1 . . . Storage 6 | . 1 . 1 . . . 1 1 . . 2 . . . . Processor 7 | . 1 . 1 . . . 4 1 . . . . . . . Hackware 1 | . . . . . . . 1 . . . . . . . . Protection 33 | . 1 1 4 2 5 . 9 3 3 . 5 . . . . Artifact . | . . . . . . . . . . . . . . . . Weapon 107 | . 8 6 15 1 10 2 27 16 3 2 6 4 3 4 . Energy Gun 26 | . . . . . . . 13 8 1 2 . . 2 . . Energy Cannon 5 | . . . . . . . . . . . 3 1 1 . . Ballistic Gun 38 | . 5 2 10 1 7 2 5 2 . . 2 . . 2 . Ballistic Cannon . | . . . . . . . . . . . . . . . . Launcher 20 | . 2 1 5 . 2 . 2 4 1 . . 3 . . . Special Weapon 1 | . . . . . 1 . . . . . . . . . . Impact Weapon . | . . . . . . . . . . . . . . . . Slashing Weapon 4 | . 1 3 . . . . . . . . . . . . . Piercing Weapon 13 | . . . . . . . 7 2 1 . 1 . . 2 . Special Melee Weapon . | . . . . . . . . . . . . . . . . Unidentified Prototypes 14 | . . . . 1 5 1 3 2 . . 2 . . . . Corrupted Parts 1 | . . . . . . . . . . . . . . 1 . System Corruption 10 | . . . . . . . . . . . . . . 10 . Parts Lost 40 | . 1 3 1 . 8 2 4 3 1 . 8 . . 9 . Power 4 | . . . . . 1 . . 1 . . 1 . . 1 . Propulsion 8 | . . 1 . . 2 1 . . . . 2 . . 2 . Utility 16 | . . 1 . . 3 1 3 1 1 . 4 . . 2 . Weapon 12 | . 1 1 1 . 2 . 1 1 . . 1 . . 4 . Highest Loss Streak 9 | . 1 1 1 . 6 2 1 2 1 . 6 . . 9 . Average Slot Usage (%) 87 | . 97 97 86 88 79 85 95 91 91 92 79 79 71 51 . Engine 3 | . 14 14 7 . . . . 5 . 1 4 . . . . Core 6 | . . . 3 11 11 11 8 . 7 5 2 7 6 3 . Treads 16 | . 24 28 21 22 22 9 15 8 7 7 6 7 6 3 . Wheel 1 | . . . . . . . . 6 7 7 7 7 6 3 . Device 6 | . . . 1 . 5 15 9 10 21 15 7 7 6 3 . Storage 10 | . 14 14 11 11 11 11 9 7 7 7 11 15 13 8 . Processor 8 | . 8 . 7 7 . . 10 15 15 15 15 15 13 9 . Protection 11 | . 4 13 12 14 12 4 13 11 1 7 8 7 6 3 . Energy Gun 6 | . 1 . . . . . 14 21 13 15 . . 5 8 . Ballistic Gun 10 | . 22 7 21 21 14 22 4 . . . . . . 3 . Launcher 1 | . 1 2 . . 2 . . . 6 1 . 2 . . . Piercing Weapon 2 | . . . . . . . 7 . . 5 7 5 . . . Naked Turns 44 | . . . . . . . . . . . . . . 32 12 Heaviest Build 117 | 11 34 34 52 53 63 62 72 117 106 112 115 110 114 114 . Greatest Support 60 | 20 40 40 44 44 44 60 60 60 28 28 28 28 28 30 3 Greatest Overweight (x) 4 | . 1 . 1 1 1 2 1 4 3 3 4 3 4 4 . Average Overweight (x) 1 | . . . . . . . . 3 3 3 3 3 3 1 . Largest Inventory Capacity 25 | 8 15 15 15 15 15 15 15 25 25 25 25 25 25 25 5 Average Capacity 17 | 8 11 15 15 15 15 15 15 24 25 25 25 25 25 18 5 Most Carried 25 | 5 13 13 15 15 15 15 15 25 25 25 25 25 25 23 5 Average Carried 16 | 4 8 11 14 14 13 14 14 22 23 24 21 24 24 16 5 Final Capacity 25 | 8 15 15 15 15 15 15 15 25 25 25 25 25 25 5 5 Final Carried 25 | 4 13 10 15 15 15 15 15 25 23 25 24 25 23 5 5 Class Distribution -------------------- 58% | Mutant 21% | Scavenger-Mutant 9% | Tank 5% | Scavenger-Tank 3% | Skirmisher Dominant Class ---------------- Mutant | -10/Materials Mutant | -10/Mines Mutant | -9/Materials Mutant | -9/Mines Mutant | -9/Exiles Scavenger-Mutant | -8/Mines Mutant | -8/Materials Tank | -7/Factory Scavenger-Mutant | -7/Lower Caves Scavenger-Mutant | -7/Lower Caves Scavenger-Mutant | -7/Data Miner Scavenger-Mutant | -6/Proximity Caves Scavenger-Mutant | -6/Factory Scavenger-Mutant | -6/Waste Mutant | -6/Factory Resources | -11 -10 -10 -9 -9 -9 -8 -8 -7 -7 -7 -7 -6 -6 -6 -6 ----------- Run | Scr Mat Min Mat Min Exi Min Mat Fac Low Low Dat Pro Fac Was Fac Matter Collected 4756 | 200 280 414 868 70 719 262 967 450 153 110 214 49 . . . Remotely . | . . . . . . . . . . . . . . . . Salvage Created 6659 | . 618 408 1071 16 593 300 1857 1082 97 126 398 93 . . . Parts 446 | . 38 31 71 3 86 16 117 55 2 2 17 8 . . . Haulers Intercepted 7 | . . . 3 . . . 4 . . . . . . . . Recyclers Shooed 3 | . 1 . 2 . . . . . . . . . . . . Parts Field Recycled 19 | . . . 19 . . . . . . . . . . . . Retrieved Matter 152 | . . . 152 . . . . . . . . . . . . Parts Self-Destructed 12 | . . . . . . . . . . 7 . 5 . . . Prevented . | . . . . . . . . . . . . . . . . Kills | -11 -10 -10 -9 -9 -9 -8 -8 -7 -7 -7 -7 -6 -6 -6 -6 ------- Run | Scr Mat Min Mat Min Exi Min Mat Fac Low Low Dat Pro Fac Was Fac Combat Hostiles Destroyed 119 | . 13 9 21 3 3 7 30 22 . 1 4 6 . . . Melee 23 | . . 2 . . 2 . 14 1 . . 4 . . . . Guns 59 | . 8 3 12 1 . 7 13 14 . 1 . . . . . AOE 36 | . 5 4 9 2 1 . 3 6 . . . 6 . . . Classes Destroyed 20 | . 6 1 3 . 3 . 4 2 1 . . . . . . Worker 10 | . 1 1 3 . . . 4 1 . . . . . . . Builder 5 | . . 1 2 . . . 1 1 . . . . . . . Tunneler 2 | . 1 1 . . . . . . . . . . . . . Hauler 7 | . . . 3 . . . 4 . . . . . . . . Recycler 10 | . 3 1 2 . . 1 1 2 . . . . . . . Mechanic 1 | . . . . . . . 1 . . . . . . . . Operator 1 | . . . . . . . 1 . . . . . . . . Turret 1 | . . . . . 1 . . . . . . . . . . Watcher 7 | . 2 . 1 . . . 3 1 . . . . . . . Swarmer 38 | . 3 3 7 3 . 4 7 5 . . . 6 . . . Grunt 50 | . 10 6 6 . . 3 14 11 . . . . . . . Brawler 1 | . . . 1 . . . . . . . . . . . . Duelist 1 | . . . . . . . . 1 . . . . . . . Sentry 16 | . . . 7 . . . 7 1 . 1 . . . . . Hunter 1 | . . . . . . . 1 . . . . . . . . Programmer 3 | . . . . . . . . 3 . . . . . . . Heavy 2 | . . . . . . . 1 1 . . . . . . . Enhanced Grunt 4 | . . . . . . . . . . . 4 . . . . Zionite 6 | . . . . . 6 . . . . . . . . . . Packrat 2 | . . . . . . . . . 1 1 . . . . . Samaritan 1 | . . . . . . . . . 1 . . . . . . Assembled 2 | . . . . . 2 . . . . . . . . . . Best Kill Streak 7 | . 7 6 4 3 2 4 6 6 . 1 1 3 . . . Combat Bots Only 5 | . 3 3 3 3 1 4 3 5 . 1 1 3 . . . Max Kills in Single Turn 4 | . 2 2 3 1 1 2 2 4 1 1 1 3 . . . Gunslinging 1 | . . . . . . . 1 . . . . . . . . Exploded 3 | . 2 2 3 1 1 . 1 3 . . . 3 . . . Melee 2 | . . 1 . . 1 . 2 1 . . 1 . . . . Uniques/NPCs Destroyed 4 | . . . . . 4 . . . . . . . . . . 8R-AWN (-9/Exiles) EX-HEX (-9/Exiles) EX-DEC (-9/Exiles) EX-BIN (-9/Exiles) Combat | -11 -10 -10 -9 -9 -9 -8 -8 -7 -7 -7 -7 -6 -6 -6 -6 -------- Run | Scr Mat Min Mat Min Exi Min Mat Fac Low Low Dat Pro Fac Was Fac Damage Taken 10355 | . 597 582 913 98 1871 398 1709 1405 96 186 1960 162 . 378 . Core 1390 | . 129 107 44 9 137 62 231 339 . 6 137 . . 189 . Absorbed by Shields . | . . . . . . . . . . . . . . . . Core Remaining (%) 46 | 100 . 5 . . . 37 58 . . . . 31 . . . Volleys Fired 490 | . 51 15 107 4 136 20 58 51 2 4 11 3 4 24 . Largest 3 | . 2 2 2 2 2 2 3 3 1 3 1 1 1 1 . Hottest 197 | . 70 46 46 46 46 53 173 197 33 197 30 36 90 30 . Shots Fired 875 | . 92 24 205 5 189 40 151 116 2 9 11 4 4 23 . Gun 816 | . 83 20 196 2 175 40 148 109 . 9 11 . . 23 . Cannon 4 | . . . . . . . . . . . . . 4 . . Launcher 48 | . 9 4 9 3 7 . 3 7 2 . . 4 . . . Special 7 | . . . . . 7 . . . . . . . . . . Kinetic 663 | . 82 20 196 2 175 40 101 13 . . 11 . . 23 . Thermal 160 | . 1 . . . 7 . 43 96 . 9 . . 4 . . Explosive 44 | . 9 4 9 3 7 . 3 3 2 . . 4 . . . Electromagnetic 8 | . . . . . . . 4 4 . . . . . . . Robot Hit Streak 24 | . 8 4 15 4 21 6 11 15 7 24 4 5 . 13 . Robot Miss Streak 6 | . 3 3 5 . 6 2 4 4 . . 2 . . 1 . Penetration Max 1 | . . . . . 1 . . . . . 1 . . 1 . Secondary Targets 6 | . 1 . . . . 2 1 2 . . . . . . . Max Gunslinging Chain 1 | . 1 . . . . 1 1 1 . . . . . . . Shots Hit Robots 664 | . 58 27 134 1 120 29 135 92 3 8 32 4 . 21 . Core Hits 355 | . 30 19 51 4 63 15 70 67 3 4 20 8 . 1 . Critical Kills 8 | . 1 . . . 4 . 3 . . . . . . . . Critical Parts Destroyed 19 | . . . . . 11 1 . 1 . . 1 . . 5 . Critical Strikes 50 | . 1 . . . 15 1 8 7 . 2 2 . . 14 . Burn 9 | . . . . . . . 4 4 . 1 . . . . . Destroy 37 | . 1 . . . 15 1 3 2 . . 1 . . 14 . Puncture 4 | . . . . . . . 1 1 . 1 1 . . . . Melee Attacks 175 | . 4 21 . . . . 86 12 1 5 44 . . 2 . Impact . | . . . . . . . . . . . . . . . . Slashing 25 | . 4 21 . . . . . . . . . . . . . Piercing 150 | . . . . . . . 86 12 1 5 44 . . 2 . Sneak Attacks 25 | . . 4 . . . . 17 1 1 1 1 . . . . Combat Hostiles . | . . . . . . . . . . . . . . . . Follow-up Attacks 7 | . . 1 . . . . 6 . . . . . . . . Damage Inflicted 16186 | . 1471 923 2554 109 2109 437 4005 2471 165 246 930 384 . 382 . Guns 8882 | . 790 178 1874 14 1824 437 1444 1670 . 159 126 . . 366 . Cannons . | . . . . . . . . . . . . . . . . Explosions 3223 | . 681 202 680 95 140 . 302 643 96 . . 384 . . . Melee 3936 | . . 543 . . . . 2259 158 69 87 804 . . 16 . Ramming 139 | . . . . . 139 . . . . . . . . . . Kinetic 6597 | . 778 178 1874 14 1824 437 822 178 . . 126 . . 366 . Thermal 2393 | . 12 . . . 6 . 564 1652 . 159 . . . . . Explosive 2935 | . 681 202 680 95 140 . 302 355 96 . . 384 . . . Electromagnetic 186 | . . . . . . . 58 128 . . . . . . . Impact . | . . . . . . . . . . . . . . . . Slashing 543 | . . 543 . . . . . . . . . . . . . Piercing 3393 | . . . . . . . 2259 158 69 87 804 . . 16 . Highest Corruption 31 | . . . . . . . . 7 7 7 7 7 . 31 31 Average Corruption 8 | . . . . . . . . 6 7 7 7 7 . 18 31 Corruption Purged . | . . . . . . . . . . . . . . . . Effects 60 | . . . . . . . . 9 6 11 13 13 . 7 1 Message Errors 17 | . . . . . . . . 3 1 2 3 6 . 2 . Matter Fused 14 | . . . . . . . . 3 2 4 2 1 . 2 . Heat Flow Errors 5 | . . . . . . . . 1 1 1 1 1 . . . Energy Discharges 4 | . . . . . . . . . 1 2 . . . . 1 Parts Rejected 2 | . . . . . . . . . . . 1 1 . . . Data Loss (minor) 8 | . . . . . . . . 2 1 1 3 1 . . . Data Loss (major) 5 | . . . . . . . . . . . 3 2 . . . Misfires 1 | . . . . . . . . . . . . 1 . . . Misdirections 2 | . . . . . . . . . . . . . . 2 . Weapon Failures 2 | . . . . . . . . . . 1 . . . 1 . Overload Shots . | . . . . . . . . . . . . . . . . Overflow Damage 552 | . 6 . 2 . 10 . 414 70 16 . 7 27 . . . Projectiles . | . . . . . . . . . . . . . . . . Explosions 164 | . 6 . 2 . 10 . 33 70 16 . . 27 . . . Melee 388 | . . . . . . . 381 . . . 7 . . . . Knockbacks . | . . . . . . . . . . . . . . . . Impact . | . . . . . . . . . . . . . . . . Kinetic . | . . . . . . . . . . . . . . . . Secondary . | . . . . . . . . . . . . . . . . Self-Inflicted Damage 378 | . 43 30 . 38 . . 38 65 98 . . 66 . . . Shots 13 | . 5 1 . 1 . . 1 1 2 . . 2 . . . Rammed 47 | . . . . . 47 . . . . . . . . . . Targets Rammed 50 | . . . . . 50 . . . . . . . . . . Kicked . | . . . . . . . . . . . . . . . . Crushed 3 | . . . . . 3 . . . . . . . . . . Highest Temperature 378 | . 82 49 98 . 244 . 207 378 112 178 210 205 . . . Average Temperature 59 | . 22 23 22 . 91 . 51 100 58 54 91 106 . . . Received Heat Transfer 2528 | . 297 312 312 . 20 216 711 336 . 72 252 . . . . Siege Activations . | . . . . . . . . . . . . . . . . Robots Corrupted . | . . . . . . . . . . . . . . . . Combat Hostiles . | . . . . . . . . . . . . . . . . Parts Fried 1 | . . . . . . . . 1 . . . . . . . Impact Corruptions . | . . . . . . . . . . . . . . . . Robots Melted 1 | . . . . . . . . 1 . . . . . . . Combat Hostiles 1 | . . . . . . . . 1 . . . . . . . Parts Melted 17 | . . . . . . . 7 8 . 2 . . . . . Heat Transferred 4497 | . 37 . . . 54 . 1480 2607 . 319 . . . . . Parts Sabotaged . | . . . . . . . . . . . . . . . . Parts Stolen . | . . . . . . . . . . . . . . . . Parts Stripped . | . . . . . . . . . . . . . . . . Power Chain Reactions . | . . . . . . . . . . . . . . . . Missiles Intercepted . | . . . . . . . . . . . . . . . . Alert | -11 -10 -10 -9 -9 -9 -8 -8 -7 -7 -7 -7 -6 -6 -6 -6 ------- Run | Scr Mat Min Mat Min Exi Min Mat Fac Low Low Dat Pro Fac Was Fac Peak Influence 529 | . 286 292 515 246 . 151 478 529 . . . . 48 31 . Initial 217 | . . 52 113 176 . . 58 217 . . . . 44 16 . Average 251 | . 105 179 225 231 . 46 291 387 . . . . 45 13 . Maximum Alert Level 2 | . 1 1 2 1 . . 2 2 . . . . . . . Low Security (%) 39 | 100 93 60 56 10 . 100 23 1 . . . . 100 100 100 Level 1 42 | . 6 39 20 89 . . 59 57 . . . . . . . Level 2 18 | . . . 22 . . . 17 41 . . . . . . . Level 3 . | . . . . . . . . . . . . . . . . Level 4 . | . . . . . . . . . . . . . . . . Level 5 . | . . . . . . . . . . . . . . . . High Security . | . . . . . . . . . . . . . . . . Max Security . | . . . . . . . . . . . . . . . . Squads Dispatched 14 | . 3 . 2 . . . 4 5 . . . . . . . Investigation 5 | . 2 . 1 . . . 1 1 . . . . . . . Extermination 1 | . . . . . . . . 1 . . . . . . . Reinforcement 8 | . 1 . 1 . . . 3 3 . . . . . . . Assault . | . . . . . . . . . . . . . . . . Garrison . | . . . . . . . . . . . . . . . . Intercept . | . . . . . . . . . . . . . . . . Construction Impeded . | . . . . . . . . . . . . . . . . Haulers Reinforced 1 | . . . . . . . . 1 . . . . . . . Active Scanning Responses . | . . . . . . . . . . . . . . . . Cargo Convoy Interrupts 1 | . . . . . . . . 1 . . . . . . . Stealth | -11 -10 -10 -9 -9 -9 -8 -8 -7 -7 -7 -7 -6 -6 -6 -6 --------- Run | Scr Mat Min Mat Min Exi Min Mat Fac Low Low Dat Pro Fac Was Fac Distress Signals 14 | . 1 . 4 . . . 6 3 . . . . . . . Communications Jammed 8 | . . . . . . . . 8 . . . . . . . Distress Signals . | . . . . . . . . . . . . . . . . Times Spotted 240 | . 23 9 38 3 56 7 58 27 . 1 4 7 . 6 1 Peak Tracking Total 9 | . 4 3 6 3 9 4 7 5 . 1 2 3 . 4 1 Tactical Retreats 36 | . 1 1 . . 25 . 2 4 . . . 1 . 2 . Traps | -11 -10 -10 -9 -9 -9 -8 -8 -7 -7 -7 -7 -6 -6 -6 -6 ------- Run | Scr Mat Min Mat Min Exi Min Mat Fac Low Low Dat Pro Fac Was Fac Traps Triggered 1 | . . . . . . . . . . . . . 1 . . Indirectly . | . . . . . . . . . . . . . . . . Trap Hack Attempts . | . . . . . . . . . . . . . . . . Triggered . | . . . . . . . . . . . . . . . . Disarmed . | . . . . . . . . . . . . . . . . Reprogrammed 4 | . 4 . . . . . . . . . . . . . . Reused 1 | . . . . . . . . . . . . . . 1 . Traps Extracted . | . . . . . . . . . . . . . . . . Installed 1 | . . . . . . . . . . . . . . 1 . Triggered 1 | . . . . . . . . 1 . . . . . . . Exploded 3 | . . . . . 3 . . . . . . . . . . Machines | -11 -10 -10 -9 -9 -9 -8 -8 -7 -7 -7 -7 -6 -6 -6 -6 ---------- Run | Scr Mat Min Mat Min Exi Min Mat Fac Low Low Dat Pro Fac Was Fac Machines Disabled 28 | . . . 2 . 17 . 4 4 . . 1 . . . . Max in Single Turn 3 | . . . 1 . 2 . 1 3 . . 1 . . . . Garrison Access 1 | . . . . . . . 1 . . . . . . . . Machines Sabotaged . | . . . . . . . . . . . . . . . . Garrisons Compromised 1 | . . . . . . . . 1 . . . . . . . Overloaded Fab Kills . | . . . . . . . . . . . . . . . . Hacking | -11 -10 -10 -9 -9 -9 -8 -8 -7 -7 -7 -7 -6 -6 -6 -6 --------- Run | Scr Mat Min Mat Min Exi Min Mat Fac Low Low Dat Pro Fac Was Fac Machines Accessed 44 | . 8 . 11 1 1 . 16 2 . 1 4 . . . . Terminals 24 | . 5 . 7 . . . 10 1 . 1 . . . . . Fabricators 1 | . . . . . . . . 1 . . . . . . . Repair Stations 5 | . 1 . 2 . . . 2 . . . . . . . . Recycling Units 4 | . 2 . 1 . . . 1 . . . . . . . . Scanalyzers 3 | . . . 1 . . . 2 . . . . . . . . Garrison Access 1 | . . . . . . . 1 . . . . . . . . Total Hacks 139 | . 24 . 33 1 1 . 42 4 . 2 32 . . . . Successful 95 | . 15 . 21 1 1 . 22 1 . 2 32 . . . . Failed 44 | . 9 . 12 . . . 20 3 . . . . . . . Catastrophic 5 | . . . 1 . . . 4 . . . . . . . . Database Lockouts . | . . . . . . . . . . . . . . . . Manual 20 | . 9 . 4 . . . 7 . . . . . . . . Terminals 67 | . 16 . 18 . . . 28 3 . 2 . . . . . Fabricators 1 | . . . . . . . . 1 . . . . . . . Repair Stations 20 | . 5 . 9 . . . 6 . . . . . . . . Recycling Units 6 | . 3 . 2 . . . 1 . . . . . . . . Scanalyzers 10 | . . . 4 . . . 6 . . . . . . . . Garrison Access 1 | . . . . . . . 1 . . . . . . . . Terminal Hacks 67 | . 9 . 7 1 1 . 14 1 . 2 32 . . . . Record 14 | . . . . . 1 . . . . 2 11 . . . . Part Schematic 15 | . . . . . . . 1 1 . . 13 . . . . Robot Schematic 5 | . . . . . . . . . . . 5 . . . . Prototype ID Bank 5 | . 2 . . . . . . . . . 3 . . . . Open Door 1 | . . . . 1 . . . . . . . . . . . Branch Access Points 1 | . . . 1 . . . . . . . . . . . . Terminal Index 1 | . 1 . . . . . . . . . . . . . . Repair Station Index 1 | . . . . . . . 1 . . . . . . . . Alert Level 3 | . . . . . . . 3 . . . . . . . . Unreport Threat 2 | . . . 1 . . . 1 . . . . . . . . Locate Traps 7 | . 2 . 2 . . . 3 . . . . . . . . Reprogram Traps 1 | . 1 . . . . . . . . . . . . . . Reinforcement Status 1 | . . . . . . . 1 . . . . . . . . Recall Reinforcements 2 | . 1 . . . . . 1 . . . . . . . . Hauler Manifests 3 | . 1 . 1 . . . 1 . . . . . . . . Registered Prototypes 1 | . 1 . . . . . . . . . . . . . . Zone Layout 4 | . . . 2 . . . 2 . . . . . . . . Fabricator Hacks . | . . . . . . . . . . . . . . . . Repair Station Hacks 14 | . 4 . 8 . . . 2 . . . . . . . . Scan Component 8 | . 2 . 4 . . . 2 . . . . . . . . Repair 6 | . 2 . 4 . . . . . . . . . . . . Recycling Unit Hacks 2 | . . . 1 . . . 1 . . . . . . . . Report Inventory 2 | . . . 1 . . . 1 . . . . . . . . Scanalyzer 8 | . . . 4 . . . 4 . . . . . . . . Insert Component 4 | . . . 2 . . . 2 . . . . . . . . Analyze 4 | . . . 2 . . . 2 . . . . . . . . Garrison Access Hacks 1 | . . . . . . . 1 . . . . . . . . Seal Access 1 | . . . . . . . 1 . . . . . . . . Unauthorized Hacks 3 | . 2 . 1 . . . . . . . . . . . . Terminals . | . . . . . . . . . . . . . . . . Fabricators . | . . . . . . . . . . . . . . . . Repair Stations . | . . . . . . . . . . . . . . . . Recycling Units 3 | . 2 . 1 . . . . . . . . . . . . Tunnel 3 | . 2 . 1 . . . . . . . . . . . . Scanalyzers . | . . . . . . . . . . . . . . . . Garrison Access . | . . . . . . . . . . . . . . . . Data Cores Recovered . | . . . . . . . . . . . . . . . . Used . | . . . . . . . . . . . . . . . . Hacking Detections 29 | . 6 . 8 . . . 13 2 . . . . . . . Full Trace Events 5 | . . . . . . . 4 1 . . . . . . . Feedback Events . | . . . . . . . . . . . . . . . . Feedback Blocked . | . . . . . . . . . . . . . . . . Robot Schematics Acquired 5 | . . . . . . . . . . . 5 . . . . Robots Built . | . . . . . . . . . . . . . . . . Authchips . | . . . . . . . . . . . . . . . . Time . | . . . . . . . . . . . . . . . . Total Robot Build Rating . | . . . . . . . . . . . . . . . . Part Schematics Acquired 17 | . . . 2 . . . 1 1 . . 13 . . . . Parts Built . | . . . . . . . . . . . . . . . . Authchips . | . . . . . . . . . . . . . . . . Time . | . . . . . . . . . . . . . . . . Total Part Build Rating . | . . . . . . . . . . . . . . . . Parts Repaired 6 | . 2 . 4 . . . . . . . . . . . . Time 192 | . 58 . 134 . . . . . . . . . . . . Parts Recycled . | . . . . . . . . . . . . . . . . Recycled Matter . | . . . . . . . . . . . . . . . . Retrieved Matter . | . . . . . . . . . . . . . . . . Retrieved Components . | . . . . . . . . . . . . . . . . Parts Scanalyzed 3 | . . . 2 . . . 1 . . . . . . . . Part Schematics Acquired 2 | . . . 2 . . . . . . . . . . . . Parts Damaged . | . . . . . . . . . . . . . . . . Bothacking | -11 -10 -10 -9 -9 -9 -8 -8 -7 -7 -7 -7 -6 -6 -6 -6 ------------ Run | Scr Mat Min Mat Min Exi Min Mat Fac Low Low Dat Pro Fac Was Fac Used RIF Installer . | . . . . . . . . . . . . . . . . Robots Hacked . | . . . . . . . . . . . . . . . . Non-combat . | . . . . . . . . . . . . . . . . Combat . | . . . . . . . . . . . . . . . . Robot Hacks Applied . | . . . . . . . . . . . . . . . . Relay Couplers Released 3 | . . . . . . . . 3 . . . . . . . Programmers 3 | . . . . . . . . 3 . . . . . . . Robots Rewired . | . . . . . . . . . . . . . . . . Allies Hacked . | . . . . . . . . . . . . . . . . Hacks Repelled . | . . . . . . . . . . . . . . . . Allies | -11 -10 -10 -9 -9 -9 -8 -8 -7 -7 -7 -7 -6 -6 -6 -6 -------- Run | Scr Mat Min Mat Min Exi Min Mat Fac Low Low Dat Pro Fac Was Fac Total Allies . | . . . . . . . . . . . . . . . . Largest Group . | . . . . . . . . . . . . . . . . Highest-Rated Group . | . . . . . . . . . . . . . . . . Highest-Rated Ally . | . . . . . . . . . . . . . . . . Total Orders . | . . . . . . . . . . . . . . . . Ally Attacks . | . . . . . . . . . . . . . . . . Total Damage . | . . . . . . . . . . . . . . . . Kills . | . . . . . . . . . . . . . . . . Allies Corrupted . | . . . . . . . . . . . . . . . . Allies Melted . | . . . . . . . . . . . . . . . . Intel | -11 -10 -10 -9 -9 -9 -8 -8 -7 -7 -7 -7 -6 -6 -6 -6 ------- Run | Scr Mat Min Mat Min Exi Min Mat Fac Low Low Dat Pro Fac Was Fac Robot Analysis Total . | . . . . . . . . . . . . . . . . Derelict Logs Recovered 2 | . . . . 1 . . . . . 1 . . . . . Drone Launches . | . . . . . . . . . . . . . . . . Drone Recoveries . | . . . . . . . . . . . . . . . . Exploration | -11 -10 -10 -9 -9 -9 -8 -8 -7 -7 -7 -7 -6 -6 -6 -6 ------------- Run | Scr Mat Min Mat Min Exi Min Mat Fac Low Low Dat Pro Fac Was Fac Turns Passed 12912 | 2 884 334 1726 420 3079 179 2706 1536 300 475 492 468 98 201 12 Spaces Moved 5381 | 1 399 136 637 180 1131 73 1052 717 184 284 182 179 58 146 22 Core 94 | . . . . . . . . . . . . . . 72 22 Treads 3357 | . 333 136 637 180 1131 18 863 59 . . . . . . . Legs 332 | 1 66 . . . . 55 189 . . . . . . 21 . Wheels 1598 | . . . . . . . . 658 184 284 182 179 58 53 . Hover . | . . . . . . . . . . . . . . . . Flight . | . . . . . . . . . . . . . . . . Fastest Speed 50 | 120 120 160 145 145 145 120 120 145 145 145 145 145 145 50 50 Average Speed 182 | 120 153 160 191 224 223 149 203 157 145 145 146 145 150 96 50 Slowest Speed 260 | 120 240 160 225 225 225 260 250 250 145 145 160 145 160 160 50 Overloaded Moves . | . . . . . . . . . . . . . . . . Propulsion Burnouts . | . . . . . . . . . . . . . . . . Robots Hopped . | . . . . . . . . . . . . . . . . Cave-ins Triggered . | . . . . . . . . . . . . . . . . Exploration Rate (%) 44 | 2 83 39 73 47 77 18 86 18 31 47 80 39 4 70 2 Regions Visited 15 Branch Regions 8 Pre-discovered Areas 5 | . 2 . 1 . 1 . . . . . 1 . . . . Known Exits Taken 6 | . . . 1 . . . . 1 1 1 1 1 . . . Unknown Exits Taken 7 | 1 1 1 . 1 1 1 1 . . . . . . . . Scrap Searched 10 | . . 1 . 2 . . . . 2 5 . . . . . Spaces Dug 60 | . 3 . . 18 . . 29 4 . 2 . . 4 . . Terrain Destroyed 326 | . 41 21 63 18 29 2 50 40 18 2 . 37 4 1 . Melee 29 | . 3 . . . . . 20 4 . 2 . . . . . Projectile 33 | . . . . . 16 2 3 7 . . . . 4 1 . AOE 259 | . 38 21 63 18 10 . 27 27 18 . . 37 . . . Terrain Rammed . | . . . . . . . . . . . . . . . . Walls Destroyed . | . . . . . . . . . . . . . . . . Machines Disabled . | . . . . . . . . . . . . . . . . Actions | -11 -10 -10 -9 -9 -9 -8 -8 -7 -7 -7 -7 -6 -6 -6 -6 --------- Run | Scr Mat Min Mat Min Exi Min Mat Fac Low Low Dat Pro Fac Was Fac Total 7378 | 2 585 191 959 192 1437 101 1393 1003 212 329 328 382 65 177 22 Wait 894 | . 95 11 157 . 60 3 107 163 14 31 58 195 . . . Move 5367 | . 398 135 636 179 1130 72 1051 716 183 283 181 178 58 145 22 Hop . | . . . . . . . . . . . . . . . . Pick Up 95 | . 14 1 14 1 20 1 16 16 2 1 9 . . . . Fast Attach 54 | . 4 . 8 2 4 1 22 4 . . 5 1 . 3 . Attach 42 | . 4 3 2 1 9 1 5 3 3 . 8 . 2 1 . Detach 3 | . . . . . . . 1 . . . 1 1 . . . Swap 119 | . 7 6 16 1 12 3 26 26 5 5 6 4 1 1 . Drop 105 | 2 8 1 19 4 15 . 37 12 2 . 5 . . . . Fire 490 | . 51 15 107 4 136 20 58 51 2 4 11 3 4 24 . Melee 157 | . 4 19 . . . . 70 12 1 5 44 . . 2 . Ram . | . . . . . . . . . . . . . . . . Kick . | . . . . . . . . . . . . . . . . Crush 50 | . . . . . 50 . . . . . . . . . . Escape Stasis . | . . . . . . . . . . . . . . . . Rewire 1 | . . . . . 1 . . . . . . . . . . Trap 1 | . . . . . . . . . . . . . . 1 . Miscellaneous . | . . . . . . . . . . . . . . . . Route ------- -11/Scrapyard -10/Materials (discovered 4 exits: *Mat x3 / [*Min]) -10/Mines -9/Materials (discovered 5 exits: *Mat / *Min x2 / *Sto x2) -9/Mines -9/Exiles -8/Mines -8/Materials (discovered 2 exits: *Fac x2) -7/Factory (discovered 2 exits: *Fac / *Low) -7/Lower Caves -7/Lower Caves -7/Data Miner -6/Proximity Caves -6/Factory -6/Waste -6/Factory History --------- Turn | Location | Event 3 | -11/Scrapyard | Discovered new exit (range 0) 3 | -11/Scrapyard | Entered Materials 122 | -10/Materials | Discovered new exit (range 15) 316 | -10/Materials | Build established: Mutant 421 | -10/Materials | Discovered new exit (range 8) 692 | -10/Materials | Repaired Lgt. Treads 737 | -10/Materials | Repaired Autogun 794 | -10/Materials | Discovered new exit (range 11) 796 | -10/Materials | Core integrity fell below 50% 839 | -10/Materials | Discovered new exit (range 13) 887 | -10/Materials | Entered Mines 1083 | -10/Mines | Core integrity fell below 20% 1211 | -10/Mines | Discovered new exit (range 5) 1221 | -10/Mines | Entered Materials 1221 | -9/Materials | Evolved 2 slots: Utility x2 1394 | -9/Materials | Identified exit to Mines 1394 | -9/Materials | Identified exit to Storage 1913 | -9/Materials | Repaired Autogun 1941 | -9/Materials | Repaired Lgt. Assault Rifle 2163 | -9/Materials | Discovered new exit (range 7) 2802 | -9/Materials | Repaired Hvy. Armor Plating 2842 | -9/Materials | Repaired Adv. Treads 2947 | -9/Materials | Entered Mines 2961 | -9/Mines | Learned Materials emergency access door positions 3233 | -9/Mines | Found the Drone Emporium 3246 | -9/Mines | Found Prototype Device 3246 | -9/Mines | Identified Decoy Drone Bay 3356 | -9/Mines | Deemed a non-threat by the Exiles lab entrance 3358 | -9/Mines | Discovered new exit (range 5) 3367 | -9/Mines | Entered Exiles 3421 | -9/Exiles | Met 8R-AWN 3462 | -9/Exiles | Met EX-HEX 3550 | -9/Exiles | Met EX-DEC 3559 | -9/Exiles | Learned location of Zion (-6) 3680 | -9/Exiles | Discovered new exit (range 10) 4152 | -9/Exiles | Attacked by the Exiles 4359 | -9/Exiles | Lost 6 parts (1p2n2u1w) 4454 | -9/Exiles | Destroyed 8R-AWN 4461 | -9/Exiles | Found Prototype Ballistic Gun 4469 | -9/Exiles | Found Prototype Ballistic Gun 4475 | -9/Exiles | Found Prototype Processor 4481 | -9/Exiles | Found Prototype Device 4490 | -9/Exiles | Found Prototype Protection 4509 | -9/Exiles | Identified 8R-AWN's Boregun (x2) 4515 | -9/Exiles | Identified AS-neutralizer No. 17b 5430 | -9/Exiles | Destroyed EX-HEX 6003 | -9/Exiles | Destroyed EX-DEC 6041 | -9/Exiles | Destroyed EX-BIN 6163 | -9/Exiles | Identified 8R-AWN's Armor/EX 6390 | -9/Exiles | Build established: Scavenger-Mutant 6446 | -9/Exiles | Entered Mines 6514 | -8/Mines | Core integrity fell below 50% 6619 | -8/Mines | Discovered new exit (range 5) 6625 | -8/Mines | Entered Materials 6625 | -8/Materials | Evolved 2 slots: Utility x1, Weapon x1 7382 | -8/Materials | Build established: Mutant 7642 | -8/Materials | Identified Exp. Targeting Computer 7955 | -8/Materials | Discovered new exit (range 7) 8927 | -8/Materials | Discovered new exit (range 6) 9331 | -8/Materials | Entered Factory 9331 | -7/Factory | Evolved 2 slots: Propulsion x1, Utility x1 9439 | -7/Factory | Build established: Scavenger-Tank 9655 | -7/Factory | Discovered new exit (range 5) 9660 | -7/Factory | Identified exit to Factory 9782 | -7/Factory | Build established: Tank 10386 | -7/Factory | Discovered new exit (range 15) 10406 | -7/Factory | Identified exit to Lower Caves 10477 | -7/Factory | Build established: Skirmisher 10541 | -7/Factory | Cargo convoy interrupted 10867 | -7/Factory | Entered Lower Caves 11102 | -7/Lower Caves | Build established: Scavenger-Mutant 11158 | -7/Lower Caves | Discovered new exit (range 5) 11165 | -7/Lower Caves | Identified exit to Lower Caves 11167 | -7/Lower Caves | Entered another Lower Caves area 11361 | -7/Lower Caves | Identified exit to Data Miner 11521 | -7/Lower Caves | Attracted the attention of an 0b10 checkpoint 11642 | -7/Lower Caves | Entered Data Miner 11645 | -7/Data Miner | Discovered new exit (range 6) 11673 | -7/Data Miner | Met Data Miner 11700 | -7/Data Miner | Learned location of Section 7 (-2) 11700 | -7/Data Miner | Acquired the access code to Warlord's prototype stash 11723 | -7/Data Miner | Received God Mode back door access code from Data Miner 11753 | -7/Data Miner | Data Conduit disabled 11823 | -7/Data Miner | Core integrity fell below 50% 11952 | -7/Data Miner | Found Prototype Device 11966 | -7/Data Miner | Lost 6 parts (1p2n3u) 12076 | -7/Data Miner | Identified Exp. Thermal Shield 12133 | -7/Data Miner | Identified exit to Proximity Caves 12134 | -7/Data Miner | Entered Proximity Caves 12438 | -6/Proximity Caves | Received a Behemoth hack from an annoying Tinkerer 12585 | -6/Proximity Caves | Discovered exit to Factory (range 11) 12602 | -6/Proximity Caves | Entered Factory 12602 | -6/Factory | Evolved 2 slots: Utility x2 12700 | -6/Factory | Sucked down chute 12700 | -6/Factory | Entered Waste 12715 | -6/Waste | EMP discharged 12715 | -6/Waste | System corruption reached 10% 12741 | -6/Waste | Spotted C-40 Crusher 12763 | -6/Waste | Spotted C-40 Crusher 12790 | -6/Waste | Spotted C-40 Crusher 12815 | -6/Waste | EMP discharged 12818 | -6/Waste | Crushed by Compactor (1 part destroyed, 1 dropped) 12828 | -6/Waste | Crushed by Compactor (1 part destroyed, 1 dropped) 12831 | -6/Waste | Crushed by Compactor (1 part destroyed) 12834 | -6/Waste | Crushed by Compactor (1 part destroyed, 2 dropped) 12837 | -6/Waste | Crushed by Compactor (1 part destroyed, 1 dropped) 12840 | -6/Waste | Crushed by Compactor (1 part destroyed, 1 dropped) 12844 | -6/Waste | System corruption reached 30% 12844 | -6/Waste | Spotted C-40 Crusher 12863 | -6/Waste | Spotted C-40 Crusher 12869 | -6/Waste | Crushed by Compactor (1 part destroyed, 1 dropped) 12892 | -6/Waste | Discovered new exit (range 16) 12900 | -6/Waste | Lost 9 parts (1p2n2u4w) 12901 | -6/Waste | Entered Factory 12912 | -6/Factory | Spotted B-75 Beast 12913 | -6/Factory | Self-destructed Last Messages --------------- 12840_ 8R-AWN's Boregun crushed. 12840_ Exp. Targeting Computer crushed. 12843_ C-40 Crusher triggered Dirty Bomb Trap. 12843_ An explosion rips through the floor. 12843_ Acquired Corrupted Adv. Myomer Leg. 12843_ Integrated Corrupted Adv. Myomer Leg (+10). 12844_ Corrupted Missile Launcher crushed. 12846_ Corrupted AS-neutralizer No. 17b crushed. 12849_ Lyr. Medium Armor Plating crushed. 12851_ Corrupted Shock Bomb Launcher crushed. 12852_ Corrupted Huge Storage Unit crushed. 12854_ Corrupted Prototype Leg crushed. 12854_ Corrupted Neutron Cannon crushed. 12869_ Adv. Myomer Leg crushed. 12869_ Imp. Signal Interpreter crushed. 12892_ EXIT=FOUND LOCATION=UNKNOWN GOAL=ESCAPE 12912_ System corrupted: Energy discharge (-20). 12913_ Fabricator disabled. Map ----- +----------------------------------------------------+ | | | | | ?????????????????????????????????????????????????? | | ?????????????????????????????????????????????????? | | ?????????????????????????????????????????????????? | | ?????????????????????????????????????????????????? | | ?????????????????????????????????????????????????? | | ?????????????????????????????????????????????????? | | ?????????????????????????????????????????????????? | | ?????????????????????????????????????????????????? | | ?????????????????????????????????????????????????? | | ?????????????????????????????????????????????????? | | ?????????????????????????????????????????????????? | | ?????????????????????????????????????????????????? | | #######??????????????????????????????????????????? | | #??????????????????###?????????????????????? | | #??????????????????BB#?????????????????????? | | #?????????????????#BB########??????????????? | | ##############???? ???????????????? | | # #???# ???????????????? | | # # = ]#???#" """????????????????? | | # # #???#" """ ""?????????????? | | # # #???#" """ """????????????? | | # # #???#"" ?????????????? | | # # #???# """ "??????????????? | | # + "" "" ##### @ """ "??????????????? | | # # "" "" + """ "??????????????? | | # # """ """ #### ???????????? | | # # """ """ #??# """ """ *! ?????????? | | ####### """ """ #??# """ """ ]! ?????????? | | ??????# #??# """ """????????????????? | | ??????###########+##??# ???????????????? | | ??????????????????????# """ """????????????????? | | ??????????????????????# """ "?"????????????????? | | ??????????????????????# """ ???????????????????? | | ??????????????????????# ?????????????????????? | | ??????????????????????# "??????????????????????? | | ??????????????????????# "??????????????????????? | | ?????????????????????? "??????????????????????? | | ?????????????????????? ??????????????????????? | | ?????????????????????? "??????????????????????? | | ?????????????????????? ???????????????????????? | | ?????????????????????????????????????????????????? | | ?????????????????????????????????????????????????? | | ?????????????????????????????????????????????????? | | ?????????????????????????????????????????????????? | | ?????????????????????????????????????????????????? | | ?????????????????????????????????????????????????? | | ?????????????????????????????????????????????????? | | ?????????????????????????????????????????????????? | +----------------------------------------------------+ Best States ------------- Heat Dissipation 76 Energy Generation 19 Energy Capacity 1150 Matter Stores 300 Matter Capacity 300 Sight Range 20 Robot Scan Range 15 Terrain Scan Density 10 Jamming Range 16 Armor Coverage 750 Resistance: TH 30 Propulsion Shielding 66 Utility Shielding 66 Weapon Cycling 25 Evasion (%) 55 Targeting Accuracy 12 Recoil Reduction 3 Offensive Hacking 10 Item Schematics ----------------- Hvy. Armor Plating | -9/Materials | Scanalyzed Hrd. Light Armor Plating | -9/Materials | Scanalyzed Hcp. Storage Unit | -8/Materials | Hacked Adv. Sensor Array | -7/Factory | Hacked Combat Drone Bay | -7/Data Miner | Free Lgt. Regenerative Plating | -7/Data Miner | Free Cld. Cesium-ion Thruster | -7/Data Miner | Free Gravity Neutralizing Apparatus | -7/Data Miner | Free Imp. Heavy Machine Gun | -7/Data Miner | Free Arm. Medium Treads | -7/Data Miner | Free Imp. Focal Shield | -7/Data Miner | Free KE Penetrator | -7/Data Miner | Free Imp. Target Analyzer | -7/Data Miner | Free Wave Gun | -7/Data Miner | Free Tesla Rifle | -7/Data Miner | Free Field Propulsion Array | -7/Data Miner | Free Lgt. Antimatter Reactor | -7/Data Miner | Free Robot Schematics ------------------ L-41 Fighter | -7/Data Miner | Free R-10 Processor | -7/Data Miner | Free S-27 Virus | -7/Data Miner | Free X-62 Marksman | -7/Data Miner | Free B-48 Gladiator | -7/Data Miner | Free Fabricated ------------ Nothing Alien Tech Used ----------------- None Achievements -------------- None Challenges ------------ None Game ------ Seed ImpactCorruptionStripper Manual? 0 Play Time 01:15:57 Cumulative 404.1 hours Start 2021.10.25 @ 02:42:25 End 2021.10.25 @ 03:58:47 Sessions 1 Manual Loads 0 Difficulty Rogue Special Mode None Game No. 410 Rogue 410 Adventurer 0 Explorer 0 Win Type - Total 7 Types 6/0/0/1/0/0/0/0/0 Lore% 79 Gallery% 91 Achievement% 69 Wizard Run 0 Options --------- ASCII 0 Keyboard 0 Movement Mouse Keybinds 1 Fullscreen 2 Font 24/Smallcaps Map View 76x50 Tactical HUD 1 Map Filters NONE Filters NONE Steam 1 RUN: 6b54126e-7d6f-4f9c-a09f-a0032adca672